Workbook

Sheet Illustration 1
B13: Step 1: Identify the contract
B15: A contract is assumed to exist
B18: Step 2: Identify the P.O
B20: PO 1 | C20: Wireless tariff plan
B21: PO 2 | C21: Samsung Galazy Note 8
B22: PO 3 | C22: Customer Options for additional goods/service (IFRS 15 App B40)
B25: Step 3: Determine transaction price
B26: Item | E26: USD
B27: Note 8 | E27: 749.99
B28: Wireless tarrif plan (60 x 12 x 2) | E28: =60*12*2 -> 1440
B29: Activation (IFRS 15.25) | E29: 25
B30: Less credit (subject to IFRS 15. P. 56 constraining estimates) | E30: -100
E31: =SUM(E27:E30) -> 2114.99
B33: Step 4: Alloate transaction price to performance obligation
O34: USD
B35: Item | D35: RSASP | E35: Ratio | F35: Revenue | G35: Time of recognition | N35: Note 8 | O35: 760
A36: P.O 1 | B36: Wireless tariff | D36: =O36*12*2 -> 1440 | E36: =D36/$D$39 -> 0.6471910112 | F36: =E36*E31 -> 1368.802517 | G36: Over 24months | N36: Tariff | O36: 60 | P36: p.m
A37: P.O 2 | B37: Samsung Note8 | D37: =O35 -> 760 | E37: =D37/$D$39 -> 0.3415730337 | F37: =E37*E31 -> 722.4235506 | G37: Upon transfer of control | N37: Activation | O37: 25
A38: IFRS 15.B49 | B38: Activation fee | D38: 25 | E38: =D38/$D$39 -> 0.01123595506 | F38: =E38*E31 -> 23.76393258 | G38: Oveer 24 months
D39: =SUM(D36:D38) -> 2225 | E39: =SUM(E36:E38) -> 1 | F39: =SUM(F36:F38) -> 2114.99
B43: Step 5: Revenue recognition when/as performance obligation is satisfied
B45: Upon receipt of the money
B46: Dr: Cash (Note8 + Activation fee) | D46: =749.99+25 -> 774.99
B47: Cr: Contract liability | E47: =D46 -> 774.99
B49: For Samsung Note 8
B50: Dr: Contract liability | D50: =F37 -> 722.4235506
B51: Cr: Revenue from sales of goods (IFRS 15 Appendix B89) | E51: =D50 -> 722.4235506
B53: Wireless tarrif (monthly)
B54: Dr: Contract assets | C54: =F36/24 -> 57.0334382
B55: Cr: Revenue from tarrif | D55: =C54 -> 57.0334382
B57: Upon payment (assuming monthly)
B58: Dr: Cash | C58: 60
B59: Cr: Contract assets | D59: =C54 -> 57.0334382
B60: Cr: Contract liability | D60: =C58-D59 -> 2.966561798
B62: Activation fees (monthly)
B63: Dr: Contract liability | C63: =F38/24 -> 0.9901638577
B64: Cr: Revenue from tarrif | D64: =C63 -> 0.9901638577
B67: Assuming contract was signed in January 2019 and year end is December 2019, hypothetical extract of F.S. would look like
B68: Revenue
B69: Sales of goods | C69: =E51 -> 722.4235506
B70: Rendering of service | C70: =($D$64+$D$55)*12 -> 696.2832247
C71: =SUM(C69:C70) -> 1418.706775
B73: Contract liability | C73: =D60*12+E47-D50-C63*12+100 -> 176.2832247
B74: Analysis
B75: Initial measurement | C75: =E47 -> 774.99
B76: Less Note8 realization | C76: =-D50 -> -722.4235506
B77: Less Activation fee amortization | C77: =-$C$63*12 -> -11.88196629
B78: Excess of monthly payment over | C78: =$D$60*12 -> 35.59874157
B79: monthly revenue from tariff
C80: =SUM(C75:C78) -> 76.28322472 | D80: Please note that this figure includes the USD100 credits right to the customer
B83: Year 2020 Extract
B84: Revenue
B85: Sales of goods | C85: 0
B86: Rendering of service | C86: =($D$64+$D$55)*12 -> 696.2832247
C87: =SUM(C85:C86) -> 696.2832247
B89: Contract liability | C89: =C95 -> 100
B90: Analysis
B91: Opening balance | C91: =C80 -> 76.28322472
B92: Less Activation fee amortization | C92: =-$C$63*12 -> -11.88196629
B93: Excess of monthly payment over
B94: monthly revenue from tariff | C94: =$D$60*12 -> 35.59874157
C95: =SUM(C91:C94) -> 100 | D95: This is the USD100 credit right to the customer to be appied to any future reduction in future discounted granted the customer.
D96: The need to constrain this figure should also be considered based on IFRS 15.56

Sheet Question 1
B26: Discuss the issues Wader must consider when accounting for revenue from the contract with Vehiclex and the cost of constructing the machine required to fulfil the contract

Sheet Answer 1

Sheet Discount
A1: Illustration 2
A3: Bellway has a contract to supply components to a customer on a monthly basis. The contract price of $6 per unit is reduced to $5 per unit if the customer orders more than 10,000 units during the calendar year.
A7: The customer ordered 1,200 units in the month of January. Bellway has significant experience with this product and the purchasing patterns of this customer. Bellway estimates that the customer's purchases will exceed the 10,000-unit threshold and concludes that it is highly probable that a significant reversal in the amount of revenue recognised will not occur when the total amount of purchases by the customer is known at year end.
A10: Bellway will recognise revenue of $6,000 (1,200 units × $5 per unit) for the goods sold in January, as this is the most likely outcome for the year.
A13: If at any time during the year it appears that the total number of units ordered for the year will be less than 10,000, Bellway should change the amount of revenue previously recognised to reflect the higher (non-discounted) price.

Sheet Example -Variable consideration

Sheet Vodacom
